fUST/lending_fUST_20240115
["ID","MTS","AMOUNT","RATE_DAILY","PERIOD"]
[311594041,1705260639804,-261.96373897,0.00027397,2]
[311594042,1705260639814,-530.50063777,0.00027397,2]
[311594043,1705260639823,-500.0,0.00027397,2]
[311594044,1705260639833,-500.0,0.00027397,2]
[311594045,1705260639843,-500.0,0.00027397,2]
[311594046,1705260639854,-500.0,0.00027397,2]
[311594047,1705260639864,-202.62779638,0.00027397,2]
[311594048,1705260639873,-344.50977953,0.00027397,2]
[311594049,1705260639882,-500.0,0.00027397,2]
[311594050,1705260639891,-700.82,0.00027397,2]
[311594051,1705260639900,-273.96352238,0.00027397,2]
[311594052,1705260639909,-500.0,0.00027397,2]
[311594053,1705260639918,-500.0,0.00027397,2]
[311594054,1705260639927,-500.0,0.00027397,2]
[311594055,1705260639937,-500.0,0.00027397,2]
[311594056,1705260639946,-939.82,0.00027397,2]
[311594057,1705260639955,-500.0,0.00027397,2]
[311594058,1705260639964,-500.0,0.00027397,2]
[311594059,1705260639973,-500.0,0.00027397,2]
[311594060,1705260639982,-500.0,0.00027397,2]
[311594061,1705260639991,-500.0,0.00027397,2]
[311594062,1705260640000,-500.0,0.00027397,2]
[311594063,1705260640010,-500.0,0.00027397,2]
[311594064,1705260640019,-500.0,0.00027397,2]
[311594065,1705260640029,-500.0,0.00027397,2]
[311594066,1705260640038,-500.0,0.00027397,2]
[311594067,1705260640047,-500.0,0.00027397,2]
[311594068,1705260640056,-500.0,0.00027397,2]
[311594069,1705260640067,-500.0,0.00027397,2]
[311594070,1705260640076,-256.62702142,0.00027397,2]
[311594071,1705260640086,-213.28652714,0.00027397,2]
[311594072,1705260640096,-500.0,0.00027397,2]
[311594073,1705260640109,-500.0,0.00027397,2]
[311594074,1705260640118,-151.36626768,0.00027397,2]
[311594075,1705260640128,-502.81637563,0.00027397,2]
[311594076,1705260640137,-502.03303531,0.00027397,2]
[311594077,1705260640147,-500.0,0.00027397,2]
[311594078,1705260640156,-425.82178515,0.00027397,2]
[311594079,1705260640166,-500.0,0.00027397,2]
[311594080,1705260640175,-500.0,0.00027397,2]
[311594081,1705260640185,-337.43216097,0.00027397,2]
[311594082,1705260640196,-500.0,0.00027397,2]
[311594083,1705260640205,-500.0,0.00027397,2]
[311594084,1705260640215,-500.0,0.00027397,2]
[311594085,1705260640223,-676.99,0.00027397,2]
[311594086,1705260640233,-500.0,0.00027397,2]
[311594087,1705260640242,-500.0,0.00027397,2]
[311594088,1705260640252,-500.0,0.00027397,2]
[311594089,1705260640261,-500.0,0.00027397,2]
[311594090,1705260640271,-500.0,0.00027397,2]
[311594091,1705260640280,-500.0,0.00027397,2]
[311594092,1705260640289,-500.0,0.00027397,2]
[311594093,1705260640299,-1000.0,0.00027397,2]
[311594094,1705260640310,-500.0,0.00027397,2]
[311594095,1705260640404,-500.0,0.00027397,2]
[311594096,1705260640415,-500.0,0.00027397,2]
[311594097,1705260640425,-500.0,0.00027397,2]
[311594098,1705260640435,-500.0,0.00027397,2]
[311594099,1705260640446,-225.43281937,0.00027397,2]
[311594100,1705260640457,-500.0,0.00027397,2]
[311594101,1705260640466,-500.0,0.00027397,2]
[311594102,1705260640476,-219.2266799,0.00027397,2]
[311594103,1705260640485,-778.84,0.00027397,2]
[311594104,1705260640495,-500.0,0.00027397,2]
[311594105,1705260640505,-500.0,0.00027397,2]
[311594106,1705260640514,-500.0,0.00027397,2]
[311594107,1705260640524,-500.0,0.00027397,2]
[311594108,1705260640538,-500.0,0.00027397,2]
[311594109,1705260640549,-500.0,0.00027397,2]
[311594110,1705260640559,-500.0,0.00027397,2]
[311594111,1705260640569,-500.0,0.00027397,2]
[311594112,1705260640578,-500.0,0.00027397,2]
[311594113,1705260640588,-500.0,0.00027397,2]
[311594114,1705260640598,-500.0,0.00027397,2]
[311594115,1705260640607,-156.69701494,0.00027397,2]
[311594116,1705260640617,-502.33023252,0.00027397,2]
[311594118,1705260640626,-500.0,0.00027397,2]
[311594120,1705260640636,-500.0,0.00027397,2]
[311594121,1705260640646,-1006.92575505,0.00027397,2]
[311594122,1705260640655,-500.0,0.00027397,2]
[311594123,1705260640665,-500.0,0.00027397,2]
[311594124,1705260640674,-500.0,0.00027397,2]
[311594125,1705260640684,-500.0,0.00027397,2]
[311594126,1705260640694,-500.0,0.00027397,2]
[311594127,1705260640705,-500.0,0.00027397,2]
[311594128,1705260640714,-677.43,0.00027397,2]
[311594129,1705260640724,-500.0,0.00027397,2]
[311594130,1705260640734,-500.0,0.00027397,2]
[311594131,1705260640744,-500.0,0.00027397,2]
[311594132,1705260640754,-214.61638394,0.00027397,2]
[311594133,1705260640763,-500.0,0.00027397,2]
[311594134,1705260640773,-641.07234229,0.00027397,2]
[311594135,1705260640783,-500.0,0.00027397,2]
[311594137,1705260640793,-500.0,0.00027397,2]
[311594139,1705260640802,-500.0,0.00027397,2]
[311594140,1705260640812,-500.0,0.00027397,2]
[311594141,1705260640822,-1365.86,0.00027397,2]
[311594142,1705260640831,-500.0,0.00027397,2]
[311594143,1705260640841,-500.0,0.00027397,2]
[311594144,1705260640851,-500.0,0.00027397,2]
[311594145,1705260640860,-500.0,0.00027397,2]
[311594146,1705260640870,-500.0,0.00027397,2]
[311594147,1705260640879,-2650.4195642,0.00027397,10]
[311594148,1705260640888,-500.0,0.00027397,2]
[311594149,1705260640897,-500.0,0.00027397,2]
[311594150,1705260640907,-500.0,0.00027397,2]
[311594151,1705260640916,-275.23629998,0.00027397,2]
[311594152,1705260640925,-284.04382982,0.00027397,2]
[311594153,1705260640934,-500.0,0.00027397,2]
[311594154,1705260640943,-500.0,0.00027397,2]
[311594155,1705260640953,-500.0,0.00027397,2]
[311594156,1705260640962,-500.0,0.00027397,2]
[311594157,1705260640971,-500.0,0.00027397,2]
[311594158,1705260640981,-598.12,0.00027397,2]
[311594159,1705260640990,-500.0,0.00027397,2]
[311594160,1705260640999,-500.0,0.00027397,2]
[311594161,1705260641008,-500.0,0.00027397,2]
[311594162,1705260641018,-500.0,0.00027397,2]
[311594163,1705260641027,-500.0,0.00027397,2]
[311594164,1705260641037,-500.0,0.00027397,2]
[311594165,1705260641047,-500.0,0.00027397,2]
[311594166,1705260641056,-383.11577033,0.00027397,2]
[311594167,1705260641066,-500.0,0.00027397,2]
[311594168,1705260641075,-500.0,0.00027397,2]
[311594169,1705260641085,-500.0,0.00027397,2]
[311594170,1705260641095,-202.2453661,0.00027397,2]
[311594171,1705260641104,-529.01792933,0.00027397,2]
[311594172,1705260641114,-500.0,0.00027397,2]
[311594173,1705260641123,-500.0,0.00027397,2]
[311594174,1705260641132,-500.0,0.00027397,2]
[311594175,1705260641141,-500.0,0.00027397,2]
[311594176,1705260641151,-500.0,0.00027397,2]
[311594177,1705260641160,-500.0,0.00027397,2]
[311594178,1705260641170,-500.0,0.00027397,2]
[311594179,1705260641179,-500.0,0.00027397,2]
[311594181,1705260641188,-1253.81,0.00027397,2]
[311594183,1705260641199,-500.0,0.00027397,2]
[311594185,1705260641207,-1612.15,0.00027397,2]
[311594187,1705260641216,-500.0,0.00027397,2]
[311594188,1705260641226,-500.0,0.00027397,2]
[311594190,1705260641235,-500.0,0.00027397,2]
[311594192,1705260641244,-639.85514929,0.00027397,2]
[311594194,1705260641254,-500.0,0.00027397,2]
[311594196,1705260641263,-619.09681012,0.00027397,2]
[311594199,1705260641273,-559.8,0.00027397,2]
[311594200,1705260641282,-500.0,0.00027397,2]
[311594202,1705260641290,-559.8,0.00027397,2]
[311594203,1705260641300,-559.8,0.00027397,2]
[311594204,1705260641310,-559.8,0.00027397,2]
[311594205,1705260641319,-559.8,0.00027397,2]
[311594206,1705260641328,-559.8,0.00027397,2]
[311594207,1705260641338,-559.8,0.00027397,2]
[311594209,1705260641348,-559.8,0.00027397,2]
[311594211,1705260641357,-500.0,0.00027397,2]
[311594213,1705260641366,-500.0,0.00027397,2]
[311594215,1705260641375,-313.89482083,0.00027397,2]
[311594217,1705260641384,-505.05743799,0.00027397,2]
[311594219,1705260641394,-500.0,0.00027397,2]
[311594221,1705260641402,-500.0,0.00027397,2]
[311594222,1705260641411,-780.35,0.00027397,2]
[311594224,1705260641421,-500.0,0.00027397,2]
[311594226,1705260641431,-500.0,0.00027397,2]
[311594227,1705260641440,-500.0,0.00027397,2]
[311594228,1705260641451,-500.0,0.00027397,2]
[311594229,1705260641461,-823.27,0.00027397,2]
[311594230,1705260641470,-1114.5,0.00027397,2]
[311594231,1705260641480,-516.52958642,0.00027397,2]
[311594232,1705260641490,-500.0,0.00027397,2]
[311594233,1705260641499,-500.0,0.00027397,2]
[311594234,1705260641508,-505.42,0.00027397,2]
[311594235,1705260641517,-591.41639801,0.00027397,2]
[311594236,1705260641526,-529.51465188,0.00027397,2]
[311594237,1705260641535,-500.0,0.00027397,2]
[311594238,1705260641544,-174.42268103,0.00027397,2]
[311594239,1705260641553,-500.0,0.00027397,2]
[311594240,1705260641562,-500.0,0.00027397,2]
[311594241,1705260641571,-500.0,0.00027397,2]
[311594242,1705260641580,-2845.46,0.00027397,2]
[311594243,1705260641589,-500.0,0.00027397,2]
[311594244,1705260641599,-500.0,0.00027397,2]
[311594245,1705260641608,-500.0,0.00027397,2]
[311594246,1705260641617,-500.0,0.00027397,2]
[311594247,1705260641626,-501.91288507,0.00027397,2]
[311594248,1705260641635,-500.0,0.00027397,2]
[311594249,1705260641644,-500.0,0.00027397,2]
[311594250,1705260641653,-500.0,0.00027397,2]
[311594251,1705260641662,-500.0,0.00027397,2]
[311594252,1705260641671,-500.0,0.00027397,2]
[311594253,1705260641680,-500.0,0.00027397,2]
[311594254,1705260641689,-500.0,0.00027397,2]
[311594256,1705260641700,-508.42158599,0.00027397,2]
[311594258,1705260641710,-500.0,0.00027397,2]
[311594260,1705260641719,-500.0,0.00027397,2]
[311594262,1705260641728,-514.75649595,0.00027397,2]
[311594264,1705260641737,-500.0,0.00027397,2]
[311594266,1705260641746,-500.0,0.00027397,2]
[311594268,1705260641754,-500.0,0.00027397,2]
[311594270,1705260641763,-500.0,0.00027397,2]
[311594272,1705260641772,-627.63,0.00027397,2]
[311594274,1705260641781,-501.05607679,0.00027397,2]
[311594276,1705260641790,-500.0,0.00027397,2]
[311594278,1705260641799,-654.82,0.00027397,2]
[311594279,1705260641808,-253.57805257,0.00027397,2]
[311594281,1705260641817,-500.0,0.00027397,2]
[311594282,1705260641826,-500.0,0.00027397,2]
[311594283,1705260641835,-500.0,0.00027397,2]
[311594284,1705260641845,-500.0,0.00027397,2]
[311594285,1705260641854,-500.0,0.00027397,2]
[311594286,1705260641862,-1580.9,0.00027397,2]
[311594287,1705260641871,-500.0,0.00027397,2]
[311594288,1705260641880,-500.0,0.00027397,2]
[311594289,1705260641890,-543.83676773,0.00027397,2]
[311594290,1705260641899,-500.0,0.00027397,2]
[311594291,1705260641907,-500.0,0.00027397,2]
[311594292,1705260641917,-500.0,0.00027397,2]
[311594293,1705260641926,-500.0,0.00027397,2]
[311594294,1705260641934,-500.0,0.00027397,2]
[311594295,1705260641944,-430.65475799,0.00027397,2]
[311594296,1705260641954,-616.08704125,0.00027397,2]
[311594297,1705260641963,-536.82407852,0.00027397,2]
[311594298,1705260641972,-500.0,0.00027397,2]
[311594299,1705260641981,-154.92075699,0.00027397,2]
[311594300,1705260641990,-500.0,0.00027397,2]
[311594301,1705260642000,-501.52822313,0.00027397,2]
[311594302,1705260642009,-155.0,0.00027397,2]
[311594303,1705260642018,-544.83777712,0.00027397,2]
[311594304,1705260642029,-1520.33,0.00027397,2]
[311594305,1705260642038,-500.0,0.00027397,2]
[311594306,1705260642048,-500.0,0.00027397,2]
[311594307,1705260642057,-414.69913513,0.00027397,2]
[311594308,1705260642066,-1314.88,0.00027397,2]
[311594309,1705260642075,-500.0,0.00027397,2]
[311594310,1705260642084,-500.0,0.00027397,2]
[311594311,1705260642094,-500.0,0.00027397,2]
[311594312,1705260642106,-1184.04,0.00027397,2]
[311594313,1705260642116,-500.0,0.00027397,2]
[311594314,1705260642125,-503.58,0.00027397,2]
[311594315,1705260642136,-500.0,0.00027397,2]
[311594316,1705260642145,-638.99,0.00027397,2]
[311594317,1705260642154,-7192.12,0.00027397,2]
[311594318,1705260642163,-500.0,0.00027397,2]
[311594319,1705260642171,-500.0,0.00027397,2]
[311594320,1705260642183,-9197.45,0.00027397,2]
[311594321,1705260642193,-500.0,0.00027397,2]
[311594322,1705260642203,-500.0,0.00027397,2]
[311594323,1705260642215,-500.0,0.00027397,2]
[311594324,1705260642224,-500.0,0.00027397,2]
[311594325,1705260642233,-503.48256787,0.00027397,2]
[311594326,1705260642242,-221.70878892,0.00027397,2]
[311594327,1705260642252,-500.0,0.00027397,2]
[311594328,1705260642261,-500.0,0.00027397,2]
[311594329,1705260642270,-500.0,0.00027397,2]
[311594330,1705260642279,-500.0,0.00027397,2]
[311594331,1705260642289,-526.06326332,0.00027397,2]
[311594332,1705260642298,-852.98,0.00027397,2]
[311594333,1705260642307,-500.0,0.00027397,2]
[311594334,1705260642316,-4537.73,0.00027397,2]
[311594335,1705260642326,-916.52,0.00027397,2]
[311594336,1705260642335,-232.90343544,0.00027397,2]
[311594337,1705260642344,-500.0,0.00027397,2]
[311594338,1705260642354,-528.3,0.00027397,2]
[311594339,1705260642362,-500.0,0.00027397,2]
[311594340,1705260642371,-1553.15,0.00027397,2]
[311594341,1705260642381,-500.0,0.00027397,2]
[311594342,1705260642390,-645.49742427,0.00027397,2]
[311594343,1705260642476,-500.0,0.00027397,2]
[311594344,1705260642486,-500.0,0.00027397,2]
[311594345,1705260642495,-572.49159193,0.00027397,2]
[311594346,1705260642505,-500.49527847,0.00027397,2]
[311594347,1705260642514,-7178.69,0.00027397,2]
[311594348,1705260642523,-500.0,0.00027397,2]
[311594349,1705260642532,-500.0,0.00027397,2]
[311594350,1705260642541,-500.0,0.00027397,2]
[311594351,1705260642550,-500.0,0.00027397,2]
[311594352,1705260642560,-572.34395798,0.00027397,2]
[311594353,1705260642569,-500.0,0.00027397,2]
[311594354,1705260642578,-559.17037856,0.00027397,2]
[311594355,1705260642587,-3285.59,0.00027397,2]
[311594356,1705260642596,-2323.35,0.00027397,2]
[311594357,1705260642605,-320.31361279,0.00027397,2]
[311594358,1705260642614,-27473.49,0.00027397,2]
[311594359,1705260642624,-2015.0,0.00027397,2]
[311594360,1705260642633,-500.0,0.00027397,2]
[311594361,1705260642642,-500.0,0.00027397,2]
[311594362,1705260642651,-500.0,0.00027397,2]
[311594363,1705260642661,-167.86399626,0.00027397,2]
[311594364,1705260642670,-200.0,0.00027397,2]
[311594365,1705260642679,-500.0,0.00027397,2]
[311594366,1705260642689,-500.0,0.00027397,2]
[311594367,1705260642699,-500.0,0.00027397,2]
[311594368,1705260642708,-18241.2,0.00027397,2]
[311594369,1705260642717,-500.0,0.00027397,2]
[311594370,1705260642726,-500.0,0.00027397,2]
[311594371,1705260642735,-500.0,0.00027397,2]
[311594372,1705260642744,-381.60232911,0.00027397,2]
[311594373,1705260642754,-500.0,0.00027397,2]
[311594374,1705260642763,-382.37264958,0.00027397,2]
[311594375,1705260642772,-500.0,0.00027397,2]
[311594376,1705260642782,-500.0,0.00027397,2]
[311594377,1705260642792,-500.0,0.00027397,2]
[311594378,1705260642802,-500.0,0.00027397,2]
[311594379,1705260642812,-500.0,0.00027397,2]
[311594380,1705260642822,-525.36,0.00027397,2]
[311594381,1705260642832,-500.0,0.00027397,2]
[311594382,1705260642842,-500.0,0.00027397,2]
[311594383,1705260642851,-202.9357647,0.00027397,2]
[311594384,1705260642861,-500.0,0.00027397,2]
[311594385,1705260642870,-500.0,0.00027397,2]
[311594386,1705260642879,-500.0,0.00027397,2]
[311594387,1705260642888,-500.0,0.00027397,2]
[311594388,1705260642896,-500.0,0.00027397,2]
[311594389,1705260642906,-500.0,0.00027397,2]
[311594390,1705260642915,-500.0,0.00027397,2]
[311594391,1705260642924,-500.0,0.00027397,2]
[311594392,1705260642933,-500.0,0.00027397,2]
[311594393,1705260642948,-838.1,0.00027397,2]
[311594394,1705260642957,-500.0,0.00027397,2]
[311594395,1705260642966,-500.0,0.00027397,2]
[311594396,1705260642975,-500.0,0.00027397,2]
[311594397,1705260642984,-500.0,0.00027397,2]
[311594398,1705260642993,-508.708221,0.00027397,2]
[311594399,1705260643002,-500.0,0.00027397,2]
[311594400,1705260643011,-500.0,0.00027397,2]
[311594401,1705260643021,-2839.06,0.00027397,2]
[311594402,1705260643030,-1187.61,0.00027397,2]
[311594403,1705260643039,-500.0,0.00027397,2]
[311594404,1705260643048,-500.0,0.00027397,2]
[311594405,1705260643058,-500.0,0.00027397,2]
[311594406,1705260643067,-500.0,0.00027397,2]
[311594407,1705260643076,-517.97504312,0.00027397,2]
[311594408,1705260643085,-500.0,0.00027397,2]
[311594409,1705260643095,-500.0,0.00027397,2]
[311594410,1705260643107,-500.0,0.00027397,2]
[311594411,1705260643116,-500.0,0.00027397,2]
[311594412,1705260643125,-7873.88,0.00027397,2]
[311594413,1705260643134,-300.78084673,0.00027397,2]
[311594414,1705260643144,-1000.0,0.00027397,2]
[311594415,1705260643153,-500.0,0.00027397,2]
[311594416,1705260643162,-1479.0,0.00027397,2]
[311594417,1705260643171,-500.0,0.00027397,2]
[311594418,1705260643180,-500.0,0.00027397,2]
[311594419,1705260643189,-500.0,0.00027397,2]
[311594420,1705260643200,-509.40069482,0.00027397,2]
[311594421,1705260643209,-500.0,0.00027397,2]
[311594422,1705260643218,-500.0,0.00027397,2]
[311594423,1705260643227,-2796.39,0.00027397,2]
[311594424,1705260643236,-500.0,0.00027397,2]
[311594425,1705260643245,-848.05,0.00027397,2]
[311594426,1705260643255,-640.0111871,0.00027397,2]
[311594427,1705260643264,-465.19455805,0.00027397,2]
[311594428,1705260643273,-655.30601003,0.00027397,2]
[311594429,1705260643282,-559.8,0.0002767,2]
[311594430,1705260643291,-559.8,0.0002767,2]
[311594431,1705260643301,-559.8,0.0002767,2]
[311594432,1705260643310,-559.8,0.0002767,2]
[311594433,1705260643319,-559.8,0.0002767,2]
[311594434,1705260643329,-559.8,0.0002767,2]
[311594435,1705260643339,-500.0,0.0002767,2]
[311594436,1705260643348,-500.0,0.00027671,2]
[311594437,1705260643358,-500.0,0.00027671,2]
[311594438,1705260643367,-500.0,0.00027671,2]
[311594439,1705260643376,-500.0,0.00027671,2]
[311594440,1705260643385,-349.82002498,0.00027671,2]
[311594441,1705260643394,-500.0,0.00027671,2]
[311594442,1705260643403,-614.02729468,0.00027671,2]
[311594443,1705260643412,-1527.9,0.00027671,2]
[311594444,1705260643422,-500.0,0.00027671,2]
[311594445,1705260643430,-500.57720315,0.00027671,2]
[311594446,1705260643439,-500.0,0.00027671,2]
[311594447,1705260643450,-500.0,0.00027671,2]
[311594448,1705260643460,-500.0,0.00027671,2]
[311594449,1705260643469,-500.0,0.00027671,2]
[311594450,1705260643478,-500.0,0.00027671,2]
[311594451,1705260643487,-507.03720621,0.00027671,2]
[311594452,1705260643496,-700.82,0.00027671,2]
[311594453,1705260643505,-538.47917633,0.00027671,2]
[311594454,1705260643513,-500.0,0.00027671,2]
[311594455,1705260643522,-939.82,0.00027671,2]
[311594456,1705260643531,-636.10524314,0.00027671,2]
[311594457,1705260643540,-500.0,0.00027671,2]
[311594458,1705260643549,-500.0,0.00027671,2]
[311594459,1705260643558,-500.0,0.00027671,2]
[311594460,1705260643566,-500.0,0.00027671,2]
[311594461,1705260643575,-500.0,0.00027671,2]
[311594462,1705260643584,-500.0,0.00027671,2]
[311594463,1705260643593,-500.0,0.00027671,2]
[311594464,1705260643602,-676.99,0.00027671,2]
[311594465,1705260643611,-500.0,0.00027671,2]
[311594466,1705260643620,-1000.0,0.00027671,2]
[311594467,1705260643629,-500.0,0.00027671,2]
[311594468,1705260643638,-500.0,0.00027671,2]
[311594469,1705260643646,-500.0,0.00027671,2]
[311594470,1705260643653,-500.0,0.00027671,2]
[311594471,1705260643662,-500.0,0.00027671,2]
[311594472,1705260643671,-778.84,0.00027671,2]
[311594473,1705260643680,-500.0,0.00027671,2]
[311594474,1705260643689,-500.0,0.00027671,2]
[311594475,1705260643700,-587.58184042,0.00027671,2]
[311594476,1705260643709,-500.0,0.00027671,2]
[311594478,1705260643718,-500.0,0.00027671,2]
[311594480,1705260643727,-500.0,0.00027671,2]
[311594482,1705260643736,-500.0,0.00027671,2]
[311594484,1705260643745,-500.0,0.00027671,2]
[311594486,1705260643754,-504.48431866,0.00027671,2]
[311594488,1705260643763,-500.0,0.00027671,2]
[311594490,1705260643772,-500.0,0.00027671,2]
[311594492,1705260643781,-677.43,0.00027671,2]
[311594494,1705260643790,-500.0,0.00027671,2]
[311594496,1705260643799,-500.0,0.00027671,2]
[311594498,1705260643808,-500.0,0.00027671,2]
[311594500,1705260643817,-500.0,0.00027671,2]
[311594502,1705260643826,-365.14044456,0.00027671,2]
[311594504,1705260643835,-1365.86,0.00027671,2]
[311594506,1705260643844,-288.3056488,0.00027671,2]
[311594508,1705260643854,-324.19753497,0.00027671,2]
[311594510,1705260643862,-500.0,0.00027671,2]
[311594512,1705260643871,-500.0,0.00027671,2]
[311594514,1705260643880,-500.0,0.00027671,2]
[311594515,1705260643889,-500.0,0.00027671,2]
[311594517,1705260643898,-598.12,0.00027671,2]
[311594519,1705260643907,-500.0,0.00027671,2]
[311594521,1705260643917,-500.0,0.00027671,2]
[311594523,1705260643926,-516.72556179,0.00027671,2]
[311594525,1705260643935,-500.0,0.00027671,2]
[311594527,1705260643944,-500.0,0.00027671,2]
[311594529,1705260643953,-500.0,0.00027671,2]
[311594532,1705260643962,-500.0,0.00027671,2]
[311594536,1705260643972,-500.0,0.00027671,2]
[311594539,1705260643980,-1253.81,0.00027671,2]
[311594542,1705260643990,-1612.15,0.00027671,2]
[311594545,1705260643998,-500.0,0.00027671,2]
[311594547,1705260644008,-500.0,0.00027671,2]
[311594550,1705260644016,-547.80507985,0.00027671,2]
[311594552,1705260644026,-500.0,0.00027671,2]
[311594553,1705260644035,-780.35,0.00027671,2]
[311594555,1705260644044,-500.0,0.00027671,2]
[311594557,1705260644053,-500.0,0.00027671,2]
[311594558,1705260644062,-500.0,0.00027671,2]
[311594559,1705260644071,-823.27,0.00027671,2]
[311594560,1705260644080,-1114.5,0.00027671,2]
[311594561,1705260644089,-500.0,0.00027671,2]
[311594562,1705260644102,-505.42,0.00027671,2]
[311594563,1705260644112,-500.0,0.00027671,2]
[311594564,1705260644121,-500.0,0.00027671,2]
[311594565,1705260644130,-500.0,0.00027671,2]
[311594567,1705260644139,-2845.46,0.00027671,2]
[311594569,1705260644147,-500.0,0.00027671,2]
[311594571,1705260644157,-500.0,0.00027671,2]
[311594573,1705260644166,-500.0,0.00027671,2]
[311594575,1705260644177,-398.43963782,0.00027671,2]
[311594577,1705260644186,-500.0,0.00027671,2]
[311594579,1705260644196,-500.0,0.00027671,2]
[311594582,1705260644205,-500.0,0.00027671,2]
[311594585,1705260644214,-500.0,0.00027671,2]
[311594587,1705260644223,-500.0,0.00027671,2]
[311594589,1705260644232,-500.0,0.00027671,2]
[311594591,1705260644241,-500.0,0.00027671,2]
[311594593,1705260644250,-522.11357524,0.00027671,2]
[311594595,1705260644259,-500.0,0.00027671,2]
[311594602,1705260644330,-500.0,0.00027671,2]
[311594604,1705260644348,-627.63,0.00027671,2]
[311594605,1705260644357,-654.82,0.00027671,2]
[311594606,1705260644366,-500.0,0.00027671,2]
[311594608,1705260644375,-517.78557249,0.00027671,2]
[311594609,1705260644384,-1580.9,0.00027671,2]
[311594610,1705260644393,-500.0,0.00027671,2]
[311594611,1705260644402,-500.0,0.00027671,2]
[311594612,1705260644411,-504.49424522,0.00027671,2]
[311594613,1705260644421,-500.0,0.00027671,2]
[311594614,1705260644430,-565.50137611,0.00027671,2]
[311594615,1705260644439,-500.0,0.00027671,2]
[311594616,1705260644450,-500.0,0.00027671,2]
[311594617,1705260644459,-500.0,0.00027671,2]
[311594618,1705260644468,-1520.33,0.00027671,2]
[311594619,1705260644477,-500.0,0.00027671,2]
[311594620,1705260644486,-506.96874557,0.00027671,2]
[311594621,1705260644496,-1314.88,0.00027671,2]
[311594622,1705260644506,-500.0,0.00027671,2]
[311594623,1705260644515,-232.7307357,0.00027671,2]
[311594624,1705260644525,-1184.04,0.00027671,2]
[311594625,1705260644534,-500.0,0.00027671,2]
[311594626,1705260644543,-503.58,0.00027671,2]
[311594627,1705260644552,-500.0,0.00027671,2]
[311594628,1705260644561,-638.99,0.00027671,2]
[311594629,1705260644570,-7192.12,0.00027671,2]
[311594630,1705260644579,-500.0,0.00027671,2]
[311594631,1705260644588,-500.0,0.00027671,2]
[311594632,1705260644597,-9197.45,0.00027671,2]
[311594633,1705260644606,-500.0,0.00027671,2]
[311594634,1705260644615,-500.0,0.00027671,2]
[311594635,1705260644624,-500.0,0.00027671,2]
[311594636,1705260644633,-500.0,0.00027671,2]
[311594637,1705260644642,-500.0,0.00027671,2]
[311594638,1705260644651,-852.98,0.00027671,2]
[311594639,1705260644660,-4537.73,0.00027671,2]
[311594640,1705260644669,-916.52,0.00027671,2]
[311594641,1705260644679,-500.0,0.00027671,2]
[311594642,1705260644688,-528.3,0.00027671,2]
[311594643,1705260644699,-500.0,0.00027671,2]
[311594644,1705260644707,-1553.15,0.00027671,2]